fUST/lending_fUST_20240916
["ID","MTS","AMOUNT","RATE_DAILY","PERIOD"]
[338320236,1726495843922,-500.0,0.00019178,2]
[338320237,1726495843935,-605.48,0.00019178,2]
[338320238,1726495843946,-260.60508417,0.00019178,2]
[338320239,1726495843956,-601.69,0.00019178,2]
[338320240,1726495843967,-1312.66,0.00019178,2]
[338320241,1726495843979,-500.56327822,0.00019178,2]
[338320242,1726495843994,-500.0,0.00019178,2]
[338320243,1726495844006,-500.8910572,0.00019178,2]
[338320244,1726495844017,-260.0156242,0.00019178,2]
[338320245,1726495844028,-500.0,0.00019178,2]
[338320246,1726495844040,-308.77351448,0.00019178,2]
[338320247,1726495844051,-500.0,0.00019178,2]
[338320248,1726495844063,-500.0,0.00019178,2]
[338320249,1726495844074,-500.0,0.00019178,2]
[338320250,1726495844086,-500.0,0.00019178,2]
[338320251,1726495844097,-500.0,0.00019178,2]
[338320252,1726495844108,-500.0,0.00019178,2]
[338320253,1726495844119,-500.0,0.00019178,2]
[338320254,1726495844131,-500.0,0.00019178,2]
[338320255,1726495844143,-232.05484221,0.00019178,2]
[338320256,1726495844154,-1499.68,0.00019178,2]
[338320257,1726495844166,-500.0,0.00019178,2]
[338320258,1726495844177,-525.37364268,0.00019178,2]
[338320259,1726495844189,-500.0,0.00019178,2]
[338320260,1726495844200,-500.0,0.00019178,2]
[338320261,1726495844213,-942.33,0.00019178,2]
[338320262,1726495844225,-500.0,0.00019178,2]
[338320263,1726495844239,-500.0,0.00019178,2]
[338320264,1726495844251,-866.59,0.00019178,2]
[338320265,1726495844262,-500.0,0.00019178,2]
[338320266,1726495844274,-500.0,0.00019178,2]
[338320267,1726495844286,-500.0,0.00019178,2]
[338320268,1726495844298,-500.0,0.00019178,2]
[338320269,1726495844309,-500.0,0.00019178,2]
[338320270,1726495844320,-500.0,0.00019178,2]
[338320271,1726495844331,-500.0,0.00019178,2]
[338320272,1726495844343,-500.57832956,0.00019178,2]
[338320273,1726495844355,-500.0,0.00019178,2]
[338320274,1726495844367,-607.49,0.00019178,2]
[338320275,1726495844379,-465.5881438,0.00019178,2]
[338320276,1726495844391,-500.0,0.00019178,2]
[338320277,1726495844402,-1006.16,0.00019178,2]
[338320278,1726495844414,-500.0,0.00019178,2]
[338320279,1726495844426,-500.0,0.00019178,2]
[338320280,1726495844437,-799.53,0.00019178,2]
[338320281,1726495844448,-580.33,0.00019178,2]
[338320282,1726495844460,-654.32,0.00019178,2]
[338320283,1726495844472,-500.0,0.00019178,2]
[338320284,1726495844484,-500.0,0.00019178,2]
[338320285,1726495844496,-394.72079255,0.00019178,2]
[338320286,1726495844507,-773.04,0.00019178,2]
[338320287,1726495844519,-486.07187958,0.00019178,2]
[338320288,1726495844530,-500.0,0.00019178,2]
[338320289,1726495844543,-500.0,0.00019178,2]
[338320290,1726495844555,-500.0,0.00019178,2]
[338320291,1726495844568,-626.29,0.00019178,2]
[338320292,1726495844579,-500.0,0.00019178,2]
[338320293,1726495844590,-1000.0,0.00019178,2]
[338320294,1726495844602,-500.0,0.00019178,2]
[338320295,1726495844613,-500.0,0.00019178,2]
[338320296,1726495844625,-664.31,0.00019178,2]
[338320297,1726495844636,-347.22,0.00019178,2]
[338320298,1726495844648,-500.0,0.00019178,2]
[338320299,1726495844662,-500.0,0.00019178,2]
[338320300,1726495844675,-500.0,0.00019178,2]
[338320301,1726495844686,-638.517364,0.00019178,2]
[338320302,1726495844698,-548.34,0.00019178,2]
[338320303,1726495844710,-500.0,0.00019178,2]
[338320304,1726495844722,-637.5662812,0.00019178,2]
[338320305,1726495844734,-500.0,0.00019178,2]
[338320306,1726495844745,-500.0,0.00019178,2]
[338320307,1726495844757,-500.0,0.00019178,2]
[338320308,1726495844768,-500.0,0.00019178,2]
[338320309,1726495844784,-1803.75,0.00019178,2]
[338320310,1726495844795,-500.0,0.00019178,2]
[338320311,1726495844808,-500.0,0.00019178,2]
[338320312,1726495844821,-500.0,0.00019178,2]
[338320313,1726495844833,-2203.04,0.00019178,2]
[338320314,1726495844845,-219.4816423,0.00019178,2]
[338320315,1726495844857,-500.0,0.00019178,2]
[338320316,1726495844869,-541.21,0.00019178,2]
[338320317,1726495844883,-500.0,0.00019178,2]
[338320318,1726495844895,-240.5982711,0.00019178,2]
[338320319,1726495844907,-1508.5,0.00019178,2]
[338320320,1726495844919,-500.0,0.00019178,2]
[338320321,1726495844930,-1091.13,0.00019178,2]
[338320322,1726495844942,-500.0,0.00019178,2]
[338320323,1726495844954,-500.0,0.00019178,2]
[338320324,1726495844966,-500.0,0.00019178,2]
[338320325,1726495844977,-712.63,0.00019178,2]
[338320326,1726495844989,-500.0,0.00019178,2]
[338320327,1726495845002,-500.0,0.00019178,2]
[338320328,1726495845014,-500.0,0.00019178,2]
[338320329,1726495845026,-500.0,0.00019178,2]
[338320330,1726495845037,-642.66,0.00019178,2]
[338320331,1726495845048,-557.22052192,0.00019178,2]
[338320332,1726495845060,-500.0,0.00019178,2]
[338320333,1726495845072,-500.0,0.00019178,2]
[338320334,1726495845083,-500.0,0.00019178,2]
[338320335,1726495845095,-774.6,0.00019178,2]
[338320336,1726495845106,-500.0,0.00019178,2]
[338320337,1726495845118,-500.0,0.00019178,2]
[338320338,1726495845130,-500.0,0.00019178,2]
[338320339,1726495845141,-1408.36,0.00019178,2]
[338320340,1726495845153,-500.0,0.00019178,2]
[338320341,1726495845164,-500.0,0.00019178,2]
[338320342,1726495845175,-500.0,0.00019178,2]
[338320343,1726495845186,-500.0,0.00019178,2]
[338320344,1726495845198,-500.0,0.00019178,2]
[338320345,1726495845210,-559.55,0.00019178,2]
[338320346,1726495845222,-1160.09,0.00019178,2]
[338320347,1726495845234,-500.0,0.00019178,2]
[338320348,1726495845245,-500.0,0.00019178,2]
[338320349,1726495845256,-500.0,0.00019178,2]
[338320350,1726495845267,-390.12839972,0.00019178,2]
[338320351,1726495845279,-500.0,0.00019178,2]
[338320352,1726495845291,-500.0,0.00019178,2]
[338320353,1726495845303,-500.0,0.00019178,2]
[338320354,1726495845314,-500.0,0.00019178,2]
[338320355,1726495845326,-1238.51,0.00019178,2]
[338320356,1726495845337,-500.0,0.00019178,2]
[338320357,1726495845349,-943.35,0.00019178,2]
[338320358,1726495845360,-1423.85,0.00019178,2]
[338320359,1726495845370,-616.13364036,0.00019178,2]
[338320360,1726495845378,-500.0,0.00019178,2]
[338320361,1726495845388,-1230.05,0.00019178,2]
[338320362,1726495845397,-500.0,0.00019178,2]
[338320363,1726495845406,-500.0,0.00019178,2]
[338320364,1726495845417,-500.0,0.00019178,2]
[338320365,1726495845426,-200.43398852,0.00019178,2]
[338320366,1726495845436,-500.0,0.00019178,2]
[338320367,1726495845445,-678.01,0.00019178,2]
[338320368,1726495845771,-500.0,0.00019178,2]
[338320369,1726495845802,-742.34,0.00019178,2]
[338320370,1726495845812,-1161.37,0.00019178,2]
[338320371,1726495845822,-500.0,0.00019178,2]
[338320372,1726495845832,-500.0,0.00019178,2]
[338320373,1726495845843,-500.0,0.00019178,2]
[338320374,1726495845854,-500.0,0.00019178,2]
[338320375,1726495845866,-500.0,0.00019178,2]
[338320376,1726495845875,-361.01292449,0.00019178,2]
[338320377,1726495845885,-1401.75,0.00019178,2]
[338320378,1726495845895,-500.0,0.00019178,2]
[338320379,1726495845904,-567.69,0.00019178,2]
[338320380,1726495845914,-500.0,0.00019178,2]
[338320381,1726495845923,-500.0,0.00019178,2]
[338320382,1726495845933,-500.0,0.00019178,2]
[338320383,1726495845943,-500.0,0.00019178,2]
[338320384,1726495845953,-181.6990522,0.00019178,2]
[338320385,1726495845963,-698.02,0.00019178,2]
[338320386,1726495845973,-200.0,0.00019178,2]
[338320387,1726495845981,-500.0,0.00019178,2]
[338320388,1726495845990,-504.75154085,0.00019178,2]
[338320389,1726495846000,-500.0,0.00019178,2]
[338320390,1726495846009,-500.0,0.00019178,2]
[338320391,1726495846019,-500.0,0.00019178,2]
[338320392,1726495846028,-500.0,0.00019178,2]
[338320393,1726495846040,-501.82006168,0.00019178,2]
[338320394,1726495846054,-200.0,0.00019178,2]
[338320395,1726495846063,-500.0,0.00019178,2]
[338320396,1726495846072,-500.0,0.00019178,2]
[338320397,1726495846082,-500.0,0.00019178,2]
[338320398,1726495846091,-505.19282319,0.00019178,2]
[338320400,1726495846100,-636.79,0.00019178,2]
[338320402,1726495846109,-835.41,0.00019178,2]
[338320404,1726495846119,-501.50499655,0.00019178,2]
[338320405,1726495846128,-500.0,0.00019178,2]
[338320407,1726495846137,-500.0,0.00019178,2]
[338320408,1726495846146,-500.0,0.00019178,2]
[338320409,1726495846156,-626.2496076,0.00019178,2]
[338320410,1726495846165,-1904.31,0.00019178,2]
[338320411,1726495846174,-625.45,0.00019178,2]
[338320412,1726495846183,-500.0,0.00019178,2]
[338320413,1726495846192,-500.0,0.00019178,2]
[338320414,1726495846201,-500.0,0.00019178,2]
[338320415,1726495846211,-500.0,0.00019178,2]
[338320416,1726495846220,-1004.25,0.00019178,2]
[338320417,1726495846229,-500.0,0.00019178,2]
[338320418,1726495846239,-838.55,0.00019178,2]
[338320419,1726495846248,-564.08,0.00019178,2]
[338320420,1726495846257,-958.49,0.00019178,2]
[338320421,1726495846266,-500.0,0.00019178,2]
[338320423,1726495846275,-500.0,0.00019178,2]
[338320424,1726495846284,-500.0,0.00019178,2]
[338320425,1726495846294,-500.0,0.00019178,2]
[338320426,1726495846304,-853.19,0.00019178,2]
[338320427,1726495846312,-500.0,0.00019178,2]
[338320428,1726495846322,-500.0,0.00019178,2]
[338320429,1726495846331,-929.66,0.00019178,2]
[338320430,1726495846340,-506.41301119,0.00019178,2]
[338320431,1726495846349,-500.0,0.00019178,2]
[338320432,1726495846358,-500.0,0.00019178,2]
[338320433,1726495846367,-951.82,0.00019178,2]
[338320434,1726495846377,-500.0,0.00019178,2]
[338320435,1726495846386,-995.22,0.00019178,2]
[338320436,1726495846395,-500.0,0.00019178,2]
[338320437,1726495846406,-531.25,0.00019178,2]
[338320438,1726495846415,-500.0,0.00019178,2]
[338320439,1726495846424,-500.0,0.00019178,2]
[338320440,1726495846433,-560.25,0.00019178,2]
[338320441,1726495846442,-500.71849543,0.00019178,2]
[338320442,1726495846451,-500.0,0.00019178,2]
[338320443,1726495846460,-500.35150768,0.00019178,2]
[338320444,1726495846470,-717.09,0.00019178,2]
[338320445,1726495846479,-500.0,0.00019178,2]
[338320446,1726495846488,-500.0,0.00019178,2]
[338320447,1726495846498,-677.99,0.00019178,2]
[338320448,1726495846507,-500.0,0.00019178,2]
[338320449,1726495846516,-548.47,0.00019178,2]
[338320450,1726495846525,-500.0,0.00019178,2]
[338320451,1726495846537,-500.0,0.00019178,2]
[338320452,1726495846547,-500.0,0.00019178,2]
[338320453,1726495846556,-500.0,0.00019178,2]
[338320454,1726495846566,-500.0,0.00019178,2]
[338320455,1726495846575,-500.0,0.00019178,2]
[338320456,1726495846584,-500.0,0.00019178,2]
[338320457,1726495846594,-500.0,0.00019178,2]
[338320458,1726495846602,-791.31,0.00019178,2]
[338320459,1726495846611,-919.63,0.00019178,2]
[338320460,1726495846620,-500.0,0.00019178,2]
[338320461,1726495846630,-500.0,0.00019178,2]
[338320462,1726495846639,-745.92,0.00019178,2]
[338320463,1726495846648,-500.0,0.00019178,2]
[338320464,1726495846657,-500.0,0.00019178,2]
[338320465,1726495846667,-500.0,0.00019178,2]
[338320466,1726495846676,-500.0,0.00019178,2]
[338320467,1726495846686,-1087.44,0.00019178,2]
[338320468,1726495846696,-1923.11,0.00019178,2]
[338320469,1726495846705,-1202.67,0.00019178,2]
[338320470,1726495846714,-639.97,0.00019178,2]
[338320471,1726495846723,-598.47,0.00019178,2]
[338320472,1726495846732,-500.0,0.00019178,2]
[338320473,1726495846742,-500.0,0.00019178,2]
[338320474,1726495846753,-500.0,0.00019178,2]
[338320475,1726495846763,-500.0,0.00019178,2]
[338320476,1726495846773,-500.0,0.00019178,2]
[338320477,1726495846785,-500.0,0.00019178,2]
[338320478,1726495846795,-500.0,0.00019178,2]
[338320479,1726495846804,-500.0,0.00019178,2]
[338320480,1726495846813,-500.0,0.00019178,2]
[338320481,1726495846823,-500.0,0.00019178,2]
[338320482,1726495846832,-500.0,0.00019178,2]
[338320483,1726495846842,-500.0,0.00019178,2]
[338320484,1726495846851,-500.0,0.00019178,2]
[338320485,1726495846861,-500.0,0.00019178,2]
[338320486,1726495846870,-500.0,0.00019178,2]
[338320487,1726495846879,-500.0,0.00019178,2]
[338320488,1726495846888,-761.88,0.00019178,2]
[338320489,1726495846898,-500.0,0.00019178,2]
[338320490,1726495846907,-500.0,0.00019178,2]
[338320491,1726495846915,-500.0,0.00019178,2]
[338320492,1726495846924,-500.0,0.00019178,2]
[338320493,1726495846934,-500.0,0.00019178,2]
[338320494,1726495846943,-500.0,0.00019178,2]
[338320495,1726495846952,-500.0,0.00019178,2]
[338320496,1726495846961,-500.0,0.00019178,2]
[338320497,1726495846971,-676.35,0.00019178,2]
[338320498,1726495846980,-500.0,0.00019178,2]
[338320499,1726495846989,-445.43905679,0.00019178,2]
[338320500,1726495846998,-500.0,0.00019178,2]
[338320501,1726495847008,-500.0,0.00019178,2]
[338320502,1726495847017,-775.71,0.00019178,2]
[338320503,1726495847026,-500.0,0.00019178,2]
[338320504,1726495847038,-500.0,0.00019178,2]
[338320505,1726495847047,-1804.68,0.00019178,2]
[338320506,1726495847056,-500.0,0.00019178,2]
[338320507,1726495847065,-500.0,0.00019178,2]
[338320508,1726495847074,-500.0,0.00019178,2]
[338320509,1726495847084,-500.0,0.00019178,2]
[338320510,1726495847092,-1902.25,0.00019178,2]
[338320511,1726495847102,-500.0,0.00019178,2]
[338320512,1726495847111,-500.0,0.00019178,2]
[338320513,1726495847121,-500.0,0.00019178,2]
[338320514,1726495847133,-2029.02,0.00019178,2]
[338320515,1726495847145,-880.88,0.00019178,2]
[338320516,1726495847157,-500.0,0.00019178,2]
[338320517,1726495847166,-517.66,0.00019178,2]
[338320518,1726495847175,-500.0,0.00019178,2]
[338320519,1726495847184,-500.0,0.00019178,2]
[338320520,1726495847193,-555.73,0.00019178,2]
[338320521,1726495847203,-500.0,0.00019178,2]
[338320522,1726495847212,-500.0,0.00019178,2]
[338320523,1726495847221,-1537.01,0.00019178,2]
[338320524,1726495847230,-500.0,0.00019178,2]
[338320525,1726495847240,-500.0,0.00019178,2]
[338320526,1726495847251,-500.0,0.00019178,2]
[338320527,1726495847261,-500.0,0.00019178,2]
[338320528,1726495847270,-500.0,0.00019178,2]
[338320529,1726495847281,-1601.83,0.00019178,2]
[338320530,1726495847292,-500.0,0.00019178,2]
[338320531,1726495847302,-500.0,0.00019178,2]
[338320532,1726495847312,-500.0,0.00019178,2]
[338320533,1726495847321,-1655.65,0.00019178,2]
[338320534,1726495847331,-1639.35,0.00019178,2]
[338320535,1726495847340,-500.0,0.00019178,2]
[338320536,1726495847349,-500.0,0.00019178,2]
[338320537,1726495847359,-901.68,0.00019178,2]
[338320538,1726495847369,-500.0,0.00019178,2]
[338320539,1726495847378,-500.0,0.00019178,2]
[338320540,1726495847388,-500.0,0.00019178,2]
[338320541,1726495847397,-501.3781389,0.00019178,2]
[338320542,1726495847407,-500.0,0.00019178,2]
[338320543,1726495847416,-177.02561989,0.00019178,2]
[338320544,1726495847425,-500.0,0.00019178,2]
[338320545,1726495847435,-500.0,0.00019178,2]
[338320546,1726495847444,-567.63,0.00019178,2]
[338320547,1726495847454,-547.68616389,0.00019178,2]
[338320548,1726495847463,-1391.54,0.00019178,2]
[338320549,1726495847472,-500.0,0.00019178,2]
[338320550,1726495847483,-500.0,0.00019178,2]
[338320551,1726495847492,-500.0,0.00019178,2]
[338320552,1726495847502,-500.0,0.00019178,2]
[338320553,1726495847512,-500.0,0.00019178,2]
[338320554,1726495847523,-813.54,0.00019178,2]
[338320555,1726495847534,-500.0,0.00019178,2]
[338320556,1726495847545,-500.0,0.00019178,2]
[338320557,1726495847556,-1881.78,0.00019178,2]
[338320558,1726495847567,-500.0,0.00019178,2]
[338320559,1726495847577,-689.78,0.00019178,2]
[338320560,1726495847587,-500.0,0.00019178,2]
[338320561,1726495847597,-500.0,0.00019178,2]
[338320562,1726495847606,-500.0,0.00019178,2]
[338320563,1726495847616,-500.0,0.00019178,2]
[338320564,1726495847625,-500.0,0.00019178,2]
[338320565,1726495847634,-500.0,0.00019178,2]
[338320566,1726495847644,-500.0,0.00019178,2]
[338320567,1726495847655,-500.0,0.00019178,2]
[338320568,1726495847665,-515.4582146,0.00019178,2]
[338320569,1726495847675,-704.86,0.00019178,2]
[338320570,1726495847685,-500.0,0.00019178,2]
[338320571,1726495847694,-756.07,0.00019178,2]
[338320572,1726495847715,-500.0,0.00019178,2]
[338320573,1726495847726,-2093.0,0.00019178,2]
[338320574,1726495847735,-500.0,0.00019178,2]
[338320575,1726495847746,-1307.39,0.00019178,2]
[338320576,1726495847756,-500.0,0.00019178,2]
[338320577,1726495847767,-500.0,0.00019178,2]
[338320578,1726495847781,-500.0,0.00019178,2]
[338320579,1726495847791,-1684.58,0.00019178,2]
[338320580,1726495847800,-549.29,0.00019178,2]
[338320581,1726495847811,-500.0,0.00019178,2]
[338320582,1726495847821,-500.0,0.00019178,2]
[338320583,1726495847830,-500.0,0.00019178,2]
[338320584,1726495847841,-508.90721315,0.00019178,2]
[338320585,1726495847851,-1179.3,0.00019178,2]
[338320586,1726495847861,-2030.39,0.00019178,2]
[338320587,1726495847871,-500.0,0.00019178,2]
[338320588,1726495847881,-500.0,0.00019178,2]
[338320589,1726495847891,-500.0,0.00019178,2]
[338320590,1726495847901,-440.61846328,0.00019178,2]
[338320591,1726495847910,-500.0,0.00019178,2]
[338320592,1726495847920,-500.0,0.00019178,2]
[338320593,1726495847930,-500.0,0.00019178,2]
[338320594,1726495847940,-500.0,0.00019178,2]
[338320595,1726495847950,-500.0,0.00019178,2]
[338320596,1726495847960,-503.50363965,0.00019178,2]
[338320597,1726495847970,-500.0,0.00019178,2]
[338320598,1726495847981,-260.54832376,0.00019178,2]
[338320599,1726495847990,-500.0,0.00019178,2]
[338320600,1726495848000,-500.0,0.00019178,2]
[338320601,1726495848010,-945.84,0.00019178,2]
[338320602,1726495848019,-805.33,0.00019178,2]
[338320603,1726495848029,-500.0,0.00019178,2]
[338320604,1726495848040,-3467.3,0.00019178,2]
[338320605,1726495848051,-1570.57,0.00019178,2]
[338320606,1726495848061,-500.45218032,0.00019178,2]
[338320607,1726495848072,-564.87,0.00019178,2]
[338320608,1726495848081,-500.0,0.00019178,2]
[338320609,1726495848092,-2318.75,0.00019178,2]
[338320610,1726495848102,-500.0,0.00019178,2]
[338320611,1726495848112,-598.33,0.00019178,2]
[338320612,1726495848122,-500.53040301,0.00019178,2]
[338320613,1726495848133,-522.19,0.00019178,2]
[338320614,1726495848144,-500.0,0.00019178,2]
[338320615,1726495848155,-331.45647824,0.00019178,2]
[338320616,1726495848165,-514.77,0.00019178,2]
[338320617,1726495848176,-500.0,0.00019178,2]
[338320618,1726495848186,-500.0,0.00019178,2]
[338320619,1726495848196,-500.0,0.00019178,2]
[338320620,1726495848207,-533.92,0.00019178,2]
[338320621,1726495848217,-500.0,0.00019178,2]
[338320622,1726495848227,-650.26,0.00019178,2]
[338320623,1726495848238,-500.0,0.00019178,2]
[338320624,1726495848248,-500.0,0.00019178,2]
[338320625,1726495848260,-500.0,0.00019178,2]
[338320626,1726495848270,-500.0,0.00019178,2]
[338320627,1726495848280,-500.0,0.00019178,2]
[338320628,1726495848291,-500.0,0.00019178,2]
[338320629,1726495848300,-500.0,0.00019178,2]
[338320630,1726495848316,-500.0,0.00019178,2]
[338320631,1726495848327,-500.0,0.00019178,2]
[338320632,1726495848337,-500.0,0.00019178,2]
[338320633,1726495848348,-650.87,0.00019178,2]
[338320634,1726495848358,-500.0,0.00019178,2]
[338320635,1726495848369,-500.0,0.00019178,2]
[338320636,1726495848379,-500.0,0.00019178,2]
[338320637,1726495848390,-2920.17,0.00019178,2]
[338320638,1726495848400,-588.18,0.00019178,2]
[338320639,1726495848410,-2828.62,0.00019178,2]
[338320640,1726495848421,-500.0,0.00019178,2]
[338320641,1726495848431,-500.0,0.00019178,2]
[338320642,1726495848441,-868.93,0.00019178,2]
[338320643,1726495848451,-500.0,0.00019178,2]
[338320644,1726495848462,-500.0,0.00019178,2]
[338320645,1726495848472,-500.0,0.00019178,2]
[338320646,1726495848482,-500.0,0.00019178,2]
[338320647,1726495848492,-507.3482109,0.00019178,2]
[338320648,1726495848502,-731.48,0.00019178,2]
[338320649,1726495848512,-2021.03,0.00019178,2]
[338320650,1726495848522,-854.31,0.00019178,2]
[338320651,1726495848532,-968.53,0.00019178,2]
[338320652,1726495848543,-504.69,0.00019178,2]
[338320653,1726495848553,-500.0,0.00019178,2]
[338320654,1726495848563,-500.0,0.00019178,2]
[338320655,1726495848573,-504.52455899,0.00019178,2]
[338320656,1726495848584,-4437.03,0.00019178,2]
[338320657,1726495848594,-500.0,0.00019178,2]
[338320658,1726495848604,-500.0,0.00019178,2]
[338320659,1726495848614,-500.0,0.00019178,2]
[338320660,1726495848624,-500.0,0.00019178,2]
[338320661,1726495848634,-750.23,0.00019178,2]
[338320662,1726495848644,-1049.7,0.00019178,2]
[338320663,1726495848654,-500.0,0.00019178,2]
[338320664,1726495848665,-500.0,0.00019178,2]
[338320665,1726495848675,-500.0,0.00019178,2]
[338320666,1726495848685,-500.0,0.00019178,2]
[338320667,1726495848695,-500.0,0.00019178,2]
[338320668,1726495848705,-1481.54,0.00019178,2]
[338320669,1726495848714,-657.8,0.00019178,2]
[338320670,1726495848724,-500.0,0.00019178,2]
[338320671,1726495848734,-500.0,0.00019178,2]
[338320672,1726495848744,-500.0,0.00019178,2]
[338320673,1726495848754,-832.11,0.00019178,2]
[338320674,1726495848764,-1340.78,0.00019178,2]
[338320675,1726495848774,-1301.89,0.00019178,2]
[338320676,1726495848788,-2143.78,0.00019178,2]
[338320677,1726495848798,-1333.68,0.00019178,2]
[338320678,1726495848808,-1158.31,0.00019178,2]
[338320679,1726495848819,-3193.52,0.00019178,2]
[338320680,1726495848829,-3644.15,0.00019178,2]
[338320681,1726495848839,-500.0,0.00019178,2]
[338320682,1726495848849,-500.0,0.00019178,2]
[338320683,1726495848858,-500.0,0.00019178,2]
[338320684,1726495848869,-567.55,0.00019178,2]
[338320685,1726495848880,-3336.56,0.00019178,2]
[338320686,1726495848890,-3104.55,0.00019178,2]
[338320687,1726495848900,-105668.45,0.00019178,2]
[338320688,1726495848910,-500.0,0.00019178,2]
[338320689,1726495848924,-500.0,0.00019178,2]
[338320690,1726495848934,-732.05,0.00019178,2]
[338320691,1726495848944,-500.0,0.00019178,2]
[338320692,1726495848954,-500.0,0.00019178,2]
[338320693,1726495848964,-500.0,0.00019178,2]
[338320694,1726495848974,-500.0,0.00019178,2]
[338320695,1726495848984,-1184.3,0.00019178,2]
[338320696,1726495848994,-685.89,0.00019178,2]
[338320697,1726495849003,-500.0,0.00019178,2]
[338320698,1726495849013,-500.0,0.00019178,2]
[338320699,1726495849023,-501.86925796,0.00019178,2]
[338320700,1726495849033,-500.0,0.00019178,2]
[338320701,1726495849043,-500.0,0.00019178,2]
[338320702,1726495849052,-500.0,0.00019178,2]
[338320703,1726495849282,-500.0,0.00019178,2]
[338320704,1726495849294,-635.94,0.00019178,2]
[338320705,1726495849304,-500.0,0.00019178,2]
[338320706,1726495849314,-500.0,0.00019178,2]
[338320707,1726495849324,-7249.1,0.00019178,2]
[338320708,1726495849333,-3658.53,0.00019178,2]
[338320709,1726495849343,-1875.62,0.00019178,2]
[338320710,1726495849353,-500.0,0.00019178,2]
[338320711,1726495849363,-3073.68,0.00019178,2]
[338320712,1726495849373,-500.0,0.00019178,2]
[338320713,1726495849382,-501.35176015,0.00019178,2]
[338320714,1726495849391,-500.0,0.00019178,2]
[338320715,1726495849401,-500.0,0.00019178,2]
[338320716,1726495849411,-500.0,0.00019178,2]
[338320717,1726495849420,-504.51883486,0.00019178,2]
[338320718,1726495849430,-500.0,0.00019178,2]
[338320719,1726495849439,-500.0,0.00019178,2]
[338320720,1726495849449,-500.0,0.00019178,2]
[338320721,1726495849459,-500.0,0.00019178,2]
[338320722,1726495849469,-500.0,0.00019178,2]
[338320723,1726495849478,-529.76,0.00019178,2]
[338320724,1726495849488,-500.0,0.00019178,2]
[338320725,1726495849498,-500.0,0.00019178,2]
[338320726,1726495849507,-500.0,0.00019178,2]
[338320727,1726495849517,-500.0,0.00019178,2]
[338320728,1726495849526,-500.0,0.00019178,2]
[338320729,1726495849536,-500.0,0.00019178,2]
[338320730,1726495849549,-501.27253316,0.00019178,2]
[338320731,1726495849558,-500.0,0.00019178,2]
[338320732,1726495849568,-1205.39,0.00019178,2]
[338320733,1726495849579,-500.0,0.00019178,2]
[338320734,1726495849588,-892.66,0.00019178,2]
[338320735,1726495849598,-50557.59,0.00019178,2]
[338320736,1726495849608,-500.0,0.00019178,2]
[338320737,1726495849618,-500.0,0.00019178,2]
[338320738,1726495849628,-500.0,0.00019178,2]
[338320739,1726495849640,-500.0,0.00019178,2]
[338320740,1726495849651,-500.0,0.00019178,2]